bitfinex/quotes_ETHUSD_20260207
["timestamp","ask_amount","ask_price","bid_price","bid_amount"]
[1770506312693,0.98041624,2085.0,2084.7,0.001]
[1770506313613,1.19909827,2084.9,2084.7,0.001]
[1770506314714,0.002,2084.8,2084.7,0.001]
[1770506317420,0.002,2084.8,2084.5,0.001]
[1770506318118,0.91813113,2084.8,2084.5,0.001]
[1770506319524,1.19921331,2084.7,2084.5,0.001]
[1770506320997,5.71475524,2084.8,2084.5,0.001]
[1770506320998,2.11732553,2084.8,2084.5,0.001]
[1770506323504,0.91613113,2084.7,2084.5,0.001]
[1770506324708,2.11540197,2084.6,2084.3,0.001]
[1770506325296,1.19927084,2084.6,2084.3,0.001]
[1770506326701,0.91613113,2084.6,2084.3,0.001]
[1770506326907,0.91613113,2084.4,2084.0,0.001]
[1770506329518,1.19944345,2084.3,2084.0,0.001]
[1770506330124,2.11557458,2084.3,2084.0,0.001]
[1770506330824,1.19944345,2084.3,2084.0,0.001]
[1770506331822,4.79774637,2084.4,2084.0,0.001]
[1770506332700,5.7138775,2084.4,2084.0,0.001]
[1770506333519,1.20127363,2084.6,2084.0,0.91387459]
[1770506334103,0.002,2084.6,2084.0,0.91387459]
[1770506336011,0.91613113,2084.4,2084.0,0.001]
[1770506336210,1.19944345,2084.3,2084.0,0.001]
[1770506339302,1.19944345,2084.3,2084.2,0.001]
[1770506339506,1.19944345,2084.3,2083.9,0.001]
[1770506340806,0.002,2084.4,2083.9,0.91387459]
[1770506341227,1.20139856,2084.4,2083.9,0.91387459]
[1770506341428,0.002,2084.4,2083.9,0.001]
[1770506341622,0.91813113,2084.4,2083.9,0.001]
[1770506343341,1.19944345,2084.3,2083.9,0.001]
[1770506344240,0.91613113,2084.2,2083.9,0.001]
[1770506344834,0.91613113,2084.2,2083.7,0.001]
[1770506345432,2.11568969,2084.1,2083.7,0.001]
[1770506345616,1.19955856,2084.1,2083.7,0.001]
[1770506345813,0.96363555,2084.0,2083.7,0.001]
[1770506346114,0.96363555,2084.0,2083.6,0.001]
[1770506346316,1.00439903,2084.0,2083.1,0.001]
[1770506346509,1.00439903,2084.0,2082.4,6.47453265]
[1770506346510,0.96363555,2083.6,2082.6,0.9833313]
[1770506347736,0.96363555,2083.4,2082.4,6.47453265]
[1770506348150,0.96363555,2083.4,2082.4,7.45786395]
[1770506349740,1.2000192,2083.3,2082.4,7.45786395]
[1770506350340,2.16365475,2083.3,2082.4,7.45786395]
[1770506351253,1.19994396,2083.5,2082.5,0.9833313]
[1770506351739,2.12508134,2083.5,2082.6,0.97682601]
[1770506352127,0.92513738,2083.4,2082.6,0.001]
[1770506354125,0.92513738,2083.2,2082.6,0.001]
[1770506354543,0.92513738,2083.2,2082.4,6.47553265]
[1770506354544,0.92513738,2083.1,2082.4,6.41653265]
[1770506354946,0.92513738,2082.8,2081.9,0.97582601]
[1770506355924,1.20013441,2083.1,2081.9,0.97582601]
[1770506356125,0.92513738,2083.0,2081.7,1.2009096]
[1770506356330,0.92513738,2083.0,2081.7,2.17673561]
[1770506356749,0.92513738,2083.0,2081.8,2.17669947]
[1770506356951,0.92513738,2083.0,2081.9,0.97582601]
[1770506357877,0.92513738,2083.0,2082.0,0.97582601]
[1770506358036,1.20024965,2082.9,2082.0,0.97582601]
[1770506358561,4.80060904,2083.1,2082.1,0.97582601]
[1770506359431,5.72574642,2083.1,2082.1,0.97582601]
[1770506359635,0.92513738,2083.0,2081.9,2.176616]
[1770506360051,0.92513738,2083.0,2082.1,0.97582601]
[1770506360360,2.12538703,2082.9,2081.9,2.17662963]
[1770506360859,2.12538703,2082.9,2082.0,1.20074507]
[1770506361166,1.20024965,2082.9,2082.2,0.97582601]
[1770506362262,1.20013441,2083.1,2082.2,2.17644959]
[1770506362566,1.20013441,2083.1,2082.3,0.97582601]
[1770506363867,1.53901264,2083.1,2082.3,0.97582601]
[1770506364662,2.46417501,2083.1,2082.4,0.001]
[1770506364861,0.002,2082.7,2082.4,0.001]
[1770506367065,0.92713738,2082.7,2082.1,0.001]
[1770506368846,0.002,2082.7,2082.1,0.001]
[1770506371473,0.002,2082.7,2082.1,0.97682601]
[1770506372461,0.002,2082.7,2082.2,0.97582601]
[1770506374976,0.002,2082.7,2082.4,0.97582601]
[1770506376072,0.002,2082.7,2082.1,1.20167151]
[1770506376384,0.97020852,2082.1,2081.5,0.001]
[1770506376565,0.97020852,2082.1,2081.1,1.20125062]
[1770506376771,0.97020852,2082.1,2081.1,2.13704786]
[1770506376978,1.20076849,2082.0,2081.2,0.93579724]
[1770506377887,1.20076849,2082.0,2081.3,0.001]
[1770506378455,2.17086167,2082.2,2081.3,0.001]
[1770506378979,1.20065315,2082.2,2081.3,0.001]
[1770506379187,0.97020852,2082.1,2081.3,0.001]
[1770506380398,1.20076849,2082.0,2081.3,0.001]
[1770506380993,1.20076849,2082.0,2081.0,4.8063734]
[1770506380994,0.97020852,2081.9,2081.0,0.001]
[1770506381586,0.97020852,2081.6,2081.0,0.001]
[1770506381888,0.97020852,2081.6,2080.4,2.13748157]
[1770506382466,1.20105693,2081.5,2080.7,0.93579724]
[1770506383768,1.20105693,2081.5,2080.4,0.93579724]
[1770506383769,0.97020852,2081.4,2080.4,0.93579724]
[1770506383972,0.97020852,2081.4,2080.4,2.13748087]
[1770506384186,0.97020852,2081.3,2080.2,2.13857401]
[1770506384378,1.20123005,2081.2,2080.4,0.93579724]
[1770506385089,2.17143857,2081.2,2080.2,0.93679724]
[1770506385280,0.97020852,2081.1,2080.2,0.93679724]
[1770506385480,1.20123005,2081.2,2080.2,0.93679724]
[1770506386494,2.17143857,2081.2,2080.2,0.93679724]
[1770506386692,2.17143857,2081.2,2080.3,0.93579724]
[1770506386864,1.20123005,2081.2,2080.3,0.93579724]
[1770506387405,0.97020852,2081.1,2080.2,2.13860171]
[1770506387577,1.20123005,2081.2,2080.3,0.93579724]
[1770506388188,0.97020852,2081.1,2080.2,2.13859909]
[1770506388380,0.97020852,2081.1,2080.2,0.93679724]
[1770506388964,1.2013455,2081.0,2080.2,0.93679724]
[1770506389489,1.2013286,2081.1,2080.3,0.93579724]
[1770506389789,1.20109079,2081.5,2080.3,0.93579724]
[1770506390180,1.20109079,2081.5,2080.5,0.93579724]
[1770506390903,2.17117237,2081.7,2080.7,0.93579724]
[1770506391103,1.20096385,2081.7,2080.7,0.93579724]
[1770506392495,2.17305949,2081.9,2080.7,0.93579724]
[1770506392685,0.32913473,2081.8,2080.7,0.93579724]
[1770506392870,1.20094153,2081.7,2080.8,1.20146097]
[1770506393078,0.97020852,2081.6,2080.7,1.20148396]
[1770506393296,0.97020852,2081.6,2080.7,2.1372812]
[1770506393764,0.97020852,2081.6,2080.4,0.001]
[1770506393765,0.97020852,2081.6,2080.4,0.93679724]
[1770506393966,0.97020852,2081.3,2080.4,0.93679724]
[1770506395393,0.97020852,2081.1,2080.4,0.001]
[1770506395595,1.010972,2081.0,2080.4,0.001]
[1770506395794,2.17143857,2081.2,2080.4,0.001]
[1770506396595,0.97020852,2081.1,2080.4,0.001]
[1770506397097,1.010972,2080.8,2080.1,1e-08]
[1770506397389,2.17172723,2080.7,2080.1,1e-08]
[1770506398770,1.20151871,2080.7,2080.1,1e-08]
[1770506399289,2.17172723,2080.7,2080.1,1e-08]
[1770506399798,0.97020852,2080.6,2080.1,1e-08]
[1770506401178,1.20151871,2080.7,2080.1,1e-08]
[1770506401692,4.80562015,2080.9,2080.1,1e-08]
[1770506401876,1.20140323,2080.9,2080.1,0.93579725]
[1770506403363,1.20140323,2080.9,2080.1,0.88579725]
[1770506403900,1.010972,2080.8,2079.6,2.14091688]
[1770506404194,0.97020852,2080.8,2079.9,2.13776446]
[1770506404399,1.010972,2080.8,2079.9,0.93579724]
[1770506404567,1.010972,2080.8,2080.3,0.001]
[1770506404767,0.97020852,2080.8,2080.3,0.001]
[1770506405365,1.20140323,2080.9,2080.3,0.001]
[1770506409002,0.04076348,2080.8,2080.3,0.001]
[1770506409193,0.9107548,2080.8,2080.3,0.001]
[1770506410197,1.20140323,2080.9,2080.3,0.001]
[1770506412387,0.95625121,2080.8,2080.3,0.001]
[1770506412813,0.91548773,2080.8,2080.3,0.001]
[1770506414590,1.20151871,2080.7,2080.3,0.001]
[1770506415494,5.1328201,2081.0,2080.3,0.001]
[1770506415495,4.80567176,2080.9,2080.3,0.001]
[1770506416314,5.72115949,2080.9,2080.3,0.001]
[1770506417518,0.95625121,2080.8,2080.3,0.001]
[1770506418311,4.80567176,2080.9,2080.3,0.001]
[1770506418493,0.002,2080.7,2080.3,0.001]
[1770506419718,0.91548773,2080.6,2079.6,0.003]
[1770506420023,0.91548773,2080.6,2079.7,0.9367871]
[1770506421416,1.20163422,2080.5,2079.8,0.9367871]
[1770506422494,2.11712195,2080.5,2079.7,0.9367871]
[1770506425205,1.20161144,2080.6,2079.8,0.9367871]
[1770506427007,0.002,2080.7,2079.9,1.20198086]
[1770506427229,0.002,2080.7,2080.0,0.9367871]
[1770506429927,0.002,2080.7,2080.1,0.8767871]
[1770506435426,0.002,2080.7,2080.1,0.9367871]
[1770506439028,0.94743741,2080.7,2080.0,0.001]
[1770506439745,1.20157646,2080.6,2080.0,0.98316695]
[1770506440823,0.002,2080.7,2080.0,0.98316695]
[1770506441025,1.20352015,2080.7,2080.0,0.98316695]
[1770506441627,2.14895756,2080.7,2080.0,0.98316695]
[1770506443346,0.94543741,2080.6,2080.0,0.001]
[1770506444248,2.14706091,2080.6,2080.2,0.001]
[1770506447818,1.20355157,2080.7,2080.2,0.98316695]
[1770506448658,1.20355157,2080.7,2080.2,0.001]
[1770506449634,2.14898898,2080.7,2080.2,0.001]
[1770506451720,0.94543741,2080.6,2080.2,0.001]
[1770506452155,0.94543741,2080.6,2079.7,0.98216695]
[1770506452479,0.94543741,2080.6,2079.1,0.98216695]
[1770506452480,0.94543741,2080.1,2079.1,0.98216695]
[1770506452749,0.98620089,2079.9,2079.1,0.98216695]
[1770506452927,0.94543741,2079.9,2079.1,0.98216695]
[1770506453742,1.20203865,2079.8,2079.1,0.98216695]
[1770506454252,1.20203865,2079.8,2079.3,1.09201815]
[1770506454755,1.20203865,2079.8,2079.3,0.1098512]
[1770506454937,1.20203865,2079.8,2078.9,0.0357]
[1770506454938,0.94543741,2079.7,2078.9,0.0357]
[1770506455725,2.14759167,2079.6,2078.9,0.0357]
[1770506455948,1.20215426,2079.6,2078.9,1.01786695]
[1770506456735,0.94543741,2079.5,2078.9,0.0357]
[1770506457129,0.94543741,2079.5,2078.9,1e-08]
[1770506457435,0.94543741,2079.5,2078.2,1.20293083]
[1770506457635,0.98620089,2079.5,2078.9,0.001]
[1770506457930,0.94543741,2079.3,2078.9,0.001]
[1770506459253,1.20221267,2079.5,2078.9,0.98316695]
[1770506459426,2.18841356,2079.5,2078.7,0.98216695]
[1770506459632,0.94543741,2079.4,2078.0,1.02293043]
[1770506459957,5.75428569,2079.7,2078.2,0.98216695]
[1770506460153,0.94543741,2079.5,2078.2,0.98216695]
[1770506460329,0.98620089,2079.5,2078.2,0.98216695]
[1770506460654,0.94543741,2079.3,2078.2,0.98216695]
[1770506460850,0.94543741,2079.1,2077.8,0.98216695]
[1770506461053,0.94543741,2079.1,2077.9,0.98216695]
[1770506461250,0.94543741,2079.1,2077.9,2.18529547]
[1770506461442,0.94543741,2079.1,2077.9,0.98216695]
[1770506461859,0.94543741,2078.9,2077.9,0.98216695]
[1770506462154,0.94543741,2078.7,2077.2,1.20350507]
[1770506462331,0.94543741,2078.7,2077.5,1.20335713]
[1770506462536,0.94543741,2078.7,2077.5,0.98216695]
[1770506462932,0.94543741,2078.7,2076.7,0.98216695]
[1770506463135,0.04076348,2078.8,2077.1,0.98216695]
[1770506463136,0.94543741,2078.1,2077.1,0.98216695]
[1770506463342,0.1024,2078.6,2077.5,0.98216695]
[1770506463554,1.2025012,2079.0,2078.0,0.98216695]
[1770506463737,2.14793861,2079.0,2078.0,0.98216695]
[1770506463939,0.94543741,2079.3,2078.1,0.98216695]
[1770506464156,1.20238553,2079.2,2078.1,0.98216695]
[1770506464359,0.98620089,2079.1,2078.1,0.98216695]
[1770506464557,0.98620089,2079.1,2077.9,2.18527009]
[1770506464730,0.94543741,2079.1,2078.0,1.20307857]
[1770506464936,0.94543741,2079.1,2078.1,0.98216695]
[1770506465236,0.94543741,2079.1,2077.9,4.81251017]
[1770506465237,0.94543741,2079.1,2077.5,0.98216695]
[1770506465436,0.99925114,2078.9,2077.8,0.98216695]
[1770506465636,0.99925114,2078.9,2077.4,2.17869017]
[1770506465637,0.99925114,2078.7,2077.4,2.17869017]
[1770506465830,0.99925114,2078.3,2077.1,0.97526341]
[1770506466660,0.99925114,2078.3,2077.0,0.97526341]
[1770506468251,1.2029641,2078.2,2077.2,0.97526341]
[1770506468446,0.99925114,2077.9,2076.7,1.20378941]
[1770506468765,0.99925114,2077.9,2076.2,4.85714474]
[1770506468766,1.04001462,2077.7,2076.4,0.97526341]
[1770506468938,1.04001462,2077.7,2076.5,1.20394535]
[1770506469138,0.99925114,2077.7,2076.7,2.1790637]
[1770506469339,0.99925114,2077.7,2076.7,0.97526341]
[1770506469544,0.99925114,2077.7,2076.4,5.79121837]
[1770506469852,0.99925114,2077.7,2077.2,0.001]
[1770506470068,1.20331151,2077.6,2077.2,0.001]
[1770506470884,1.2029641,2078.2,2077.2,0.001]
[1770506471551,0.99925114,2078.1,2077.2,0.001]
[1770506471740,1.04001462,2078.0,2077.2,0.001]
[1770506472051,0.99925114,2078.0,2077.2,0.001]
[1770506472360,0.96947339,2077.8,2077.2,0.001]
[1770506472560,0.96947339,2077.8,2076.5,2.13459443]
[1770506472866,0.96947339,2077.5,2076.2,0.93064572]
[1770506473069,0.96947339,2077.5,2076.1,1.20415266]
[1770506473243,0.96947339,2077.5,2076.0,0.93064572]
[1770506473244,1.01023687,2077.3,2076.0,0.93064572]
[1770506473437,0.96947339,2077.3,2076.2,1.20411643]
[1770506473764,0.96947339,2077.3,2076.2,1.20412111]
[1770506474259,1.20354323,2077.2,2076.1,2.13482029]
[1770506474462,2.2137801,2077.2,2076.0,1.20420175]
[1770506474671,2.2137801,2077.2,2075.9,2.17338119]
[1770506474842,1.20354323,2077.2,2076.2,0.93064572]
[1770506475045,1.20354323,2077.2,2076.0,1.20422468]
[1770506475046,2.17301662,2077.2,2076.0,1.20422468]
[1770506475339,1.20354323,2077.2,2076.1,1.20414373]
[1770506475539,1.2035229,2077.3,2076.2,0.93064572]
[1770506475773,0.96947339,2077.2,2075.9,5.78629681]
[1770506475942,0.96947339,2077.2,2075.9,0.96912162]
[1770506476368,0.04076348,2077.0,2075.9,0.96912162]
[1770506476666,0.04076348,2076.7,2075.6,0.91912162]
[1770506477949,0.96947339,2076.8,2075.7,0.93064572]
[1770506478352,1.203833,2076.7,2075.7,0.93064572]
[1770506480051,0.96947339,2076.6,2075.2,0.1383167]
[1770506480253,2.17330639,2076.7,2075.5,0.93064572]
[1770506480864,1.203833,2076.7,2075.5,0.93064572]
[1770506481174,1.203833,2076.7,2075.3,0.9714092]
[1770506481175,0.96947339,2076.6,2075.3,0.9714092]
[1770506481474,0.96947339,2076.6,2075.2,0.1383167]
[1770506481662,0.96947339,2076.3,2075.2,0.1383167]
[1770506481842,0.96947339,2076.1,2075.2,0.1383167]
[1770506482046,0.96947339,2076.1,2075.2,1e-08]
[1770506482462,2.17371231,2076.0,2075.2,1e-08]
[1770506482855,2.17371231,2076.0,2075.9,0.001]
[1770506483079,1.20423892,2076.0,2075.2,0.93064573]
[1770506483266,0.96947339,2077.3,2075.7,0.93064572]
[1770506483770,1.07187339,2077.2,2075.7,0.93064572]
[1770506484178,0.91947339,2077.2,2075.7,0.93064572]
[1770506484373,0.91947339,2077.2,2075.9,0.93064572]
[1770506484374,1.20360117,2077.1,2075.9,0.93064572]
[1770506485054,0.96947339,2077.0,2075.9,0.93064572]
[1770506485453,1.20360117,2077.1,2075.9,0.93064572]
[1770506485771,2.17307456,2077.1,2075.9,0.93064572]
[1770506488481,0.96947339,2077.0,2075.9,0.93064572]
[1770506490072,1.20371707,2076.9,2075.9,0.93064572]
[1770506490282,1.20342736,2077.4,2076.0,0.9714092]
[1770506490602,1.20342736,2077.4,2076.5,0.93064572]
[1770506492057,4.91486554,2078.0,2076.5,0.93064572]
[1770506492058,1.20319568,2077.8,2076.7,0.93064572]
[1770506492258,1.20302199,2078.1,2076.7,0.93064572]
[1770506492687,2.17249538,2078.1,2076.7,0.93064572]
[1770506493058,0.96947339,2078.0,2076.7,0.93064572]
[1770506493259,1.20302199,2078.1,2076.2,0.93064572]
[1770506493260,0.96947339,2077.4,2076.2,0.93064572]
[1770506493516,0.96947339,2077.2,2075.9,0.93064572]
[1770506494170,0.96947339,2077.0,2075.9,0.93064572]
[1770506494365,0.96947339,2077.0,2076.0,0.93064572]
[1770506494600,1.20360117,2077.1,2076.0,0.93064572]
[1770506494802,0.96947339,2077.0,2075.7,2.1350193]
[1770506494987,0.96947339,2077.0,2075.9,2.13494035]
[1770506495188,1.20360117,2077.1,2076.0,0.93064572]
[1770506495863,1.20348529,2077.3,2076.0,0.93064572]
[1770506496061,1.20336943,2077.5,2076.1,1.20418091]
[1770506496265,2.20163023,2077.5,2076.2,0.93163562]
[1770506496462,0.9982608,2077.4,2076.2,0.93163562]
[1770506497778,1.20336943,2077.5,2076.2,0.93163562]
[1770506498271,4.81329294,2077.6,2076.4,0.93163562]
[1770506500498,0.9982608,2077.5,2076.4,0.93163562]
[1770506500794,0.9982608,2077.5,2076.4,2.13564006]
[1770506501388,0.9982608,2077.5,2076.4,0.93163562]
[1770506501591,0.9982608,2077.5,2076.4,2.13564032]
[1770506503133,2.20168816,2077.4,2076.4,0.93163562]
[1770506503269,0.9982608,2077.3,2076.1,2.13581153]
[1770506503870,0.9982608,2077.3,2076.2,2.13572954]
[1770506504075,0.9982608,2077.3,2076.3,2.13567821]
[1770506504710,0.9982608,2077.3,2076.0,0.93163562]
[1770506505105,0.9982608,2077.1,2076.0,0.93163562]
[1770506505906,0.9982608,2077.1,2075.7,0.93163562]
[1770506507098,0.9982608,2076.9,2075.8,2.13599056]
[1770506507796,0.9982608,2076.9,2075.8,0.93163562]
[1770506508724,1.20364284,2077.1,2075.8,0.93163562]
[1770506508925,1.20342736,2077.4,2076.4,0.93263562]
[1770506509125,0.002,2077.2,2076.4,0.93263562]
[1770506510014,0.002,2077.2,2076.4,2.13663757]
[1770506510214,0.002,2077.2,2076.5,0.93163562]
[1770506511120,1.0002608,2077.2,2076.4,0.001]
[1770506511626,1.20360117,2077.1,2076.4,0.001]
[1770506512024,2.20186197,2077.1,2076.4,0.001]
[1770506512205,2.20186197,2077.1,2075.9,2.13592757]
[1770506512206,0.9982608,2076.9,2075.6,0.93163562]
[1770506512410,0.9982608,2076.7,2075.6,0.93163562]
[1770506513131,0.9982608,2076.5,2075.3,0.93163562]
[1770506513628,1.20412291,2076.2,2075.2,1e-08]
[1770506514220,2.20238371,2076.2,2075.2,1e-08]
[1770506514400,1.20412291,2076.2,2075.2,1e-08]
[1770506515503,0.9982608,2076.1,2075.2,1e-08]
[1770506515701,1.20423892,2076.0,2075.2,1e-08]
[1770506517414,1.20400693,2076.4,2075.2,1e-08]
[1770506517806,4.81595784,2076.5,2075.3,0.93163562]
[1770506518012,5.81421864,2076.5,2075.3,0.93163562]
[1770506519109,4.81595784,2076.5,2075.3,0.93163562]
[1770506519830,1.203833,2076.7,2075.4,2.13622268]
[1770506520215,1.203833,2076.7,2075.5,0.93163562]
[1770506520848,1.20365912,2077.0,2075.8,0.93163562]
[1770506521134,2.20191992,2077.0,2075.8,0.93163562]
[1770506521436,0.9982608,2076.9,2075.8,0.93163562]
[1770506521730,1.20377503,2076.8,2075.9,2.13593255]
[1770506521934,1.20377503,2076.8,2076.0,0.93163562]
[1770506523831,0.002,2076.9,2076.0,2.13586485]
[1770506524027,0.002,2076.9,2076.0,0.93163562]
[1770506524230,1.0002608,2076.9,2075.8,1.20432248]
[1770506524437,1.0002608,2076.9,2075.9,1.2042967]
[1770506524726,1.0002608,2076.9,2075.8,1.20434687]
[1770506525323,0.9982608,2076.7,2075.5,0.001]
[1770506525923,0.90311673,2076.5,2075.5,0.001]
[1770506527145,0.90311673,2076.4,2075.5,0.001]
[1770506527441,1.00551673,2076.4,2075.5,0.001]
[1770506527656,1.00551673,2076.4,2075.2,1e-08]
[1770506527657,0.90311673,2076.0,2075.2,1e-08]
[1770506527822,0.90311673,2076.0,2074.6,0.90726692]
[1770506528028,2.10741366,2075.9,2074.7,1.20499349]
[1770506530546,2.10741366,2075.9,2074.7,2.11226041]
[1770506530848,1.20429693,2075.9,2074.8,0.90726692]
[1770506531226,0.1024,2076.4,2074.8,0.90726692]
[1770506531227,1.203833,2076.7,2075.2,0.90726692]
[1770506532549,1.20381643,2076.8,2075.4,0.94527413]
[1770506532730,2.13515667,2078.6,2076.6,0.90451065]
[1770506532927,3.3389731,2078.6,2076.9,0.90451065]
[1770506533632,5.48201102,2078.4,2076.9,0.90451065]
[1770506534050,6.41443509,2078.4,2076.9,0.90451065]
[1770506534543,0.04076348,2077.9,2077.0,1.20365912]
[1770506535456,0.04076348,2077.9,2076.9,2.10819678]
[1770506535637,0.04076348,2077.6,2076.7,1.20379761]
[1770506535821,0.04076348,2077.6,2076.6,2.10836288]
[1770506536218,0.04076348,2077.3,2076.3,1.20404376]
[1770506536522,1.203833,2076.7,2075.5,2.10902705]
[1770506536724,0.04076348,2076.5,2075.5,2.10902705]
[1770506536920,1.20381643,2076.6,2075.5,2.10902705]
[1770506537537,0.04076348,2076.4,2075.4,0.001]
[1770506537941,1.20381643,2076.3,2075.4,0.001]
[1770506538751,1.20412291,2076.2,2075.4,0.001]
[1770506539146,0.04076348,2076.1,2075.4,0.001]
[1770506539352,1.24457991,2076.1,2075.4,0.001]
[1770506539871,1.20381643,2076.0,2075.4,0.001]
[1770506540149,0.04076348,2077.4,2075.5,0.90451065]
[1770506540349,0.04076348,2077.0,2075.5,0.90451065]
[1770506540551,0.04076348,2076.7,2075.5,0.90451065]
[1770506540729,0.04076348,2077.0,2075.7,0.90451065]
[1770506540730,2.4075335,2076.9,2075.7,0.90451065]
[1770506540935,0.04076348,2076.8,2075.7,0.90451065]
[1770506541334,1.20381643,2076.8,2075.7,0.90451065]
[1770506541528,0.002,2078.4,2077.1,0.90451065]
[1770506541856,0.002,2078.4,2077.7,0.90451065]
[1770506542852,0.002,2078.4,2077.7,2.10775809]
[1770506543450,0.002,2078.4,2077.5,1.20336839]
[1770506543672,0.04076348,2078.3,2077.5,1.20336839]
[1770506543967,0.04076348,2078.3,2077.4,1.2033944]
[1770506544936,1.2029641,2078.2,2077.4,1.20342728]
[1770506545155,1.2029641,2078.2,2077.3,2.10796544]
[1770506545468,0.04076348,2078.0,2076.9,2.10817315]
[1770506545627,0.04076348,2077.7,2076.9,1.20371296]
[1770506545827,1.2029641,2078.2,2077.3,1.20348338]
[1770506546023,1.2029641,2078.2,2076.8,0.90451065]
[1770506546228,1.2029641,2078.2,2077.0,1.20365889]
[1770506547042,1.2029641,2078.2,2076.9,2.10822772]
[1770506547358,1.24372758,2078.2,2077.0,0.90451065]
[1770506548550,1.2029641,2078.2,2077.0,0.90451065]
[1770506548948,1.20293434,2078.3,2077.0,0.90451065]
[1770506549139,4.8134042,2078.4,2077.1,2.10811182]
[1770506549534,0.002,2078.4,2077.2,0.90451065]
[1770506550463,0.002,2078.2,2077.2,0.90451065]
[1770506551158,0.002,2078.2,2077.4,0.90451065]
[1770506551566,0.002,2078.4,2077.5,0.90451065]
[1770506553361,0.002,2078.4,2077.7,0.90451065]
[1770506555456,0.002,2078.4,2077.8,2.14734884]
[1770506555668,0.002,2078.4,2077.9,0.94415316]
[1770506557763,0.002,2078.4,2078.0,1.20307988]
[1770506559353,0.002,2078.4,2077.6,0.94415316]
[1770506559550,0.002,2078.4,2077.8,1.20318804]
[1770506560035,0.002,2078.4,2077.4,1.20342736]
[1770506563256,0.002,2078.4,2077.6,0.001]
[1770506563454,0.002,2078.2,2077.6,0.001]
[1770506565273,0.002,2078.2,2077.6,0.94515316]
[1770506566167,0.002,2078.4,2077.7,0.94415316]
[1770506566465,0.002,2078.4,2077.8,1.20319568]
[1770506567466,0.002,2078.4,2077.9,0.94415316]
[1770506568372,0.002,2078.4,2077.8,1.20319568]
[1770506568676,0.002,2078.4,2077.6,1.20430551]
[1770506570779,0.002,2078.4,2077.6,0.94515316]
[1770506571275,0.502,2078.4,2077.6,0.94515316]
[1770506572453,0.502,2078.4,2077.6,0.001]
[1770506573473,1.7048899,2078.4,2077.6,0.001]
[1770506574156,0.502,2078.4,2077.6,0.001]
[1770506577170,0.502,2078.4,2077.8,0.001]
[1770506577552,0.002,2078.2,2077.8,0.001]
[1770506580950,0.002,2078.2,2077.6,0.001]
[1770506580951,1.00095428,2078.2,2077.6,0.001]
[1770506582454,0.002,2078.2,2077.6,0.001]
[1770506583563,0.002,2078.2,2077.6,0.94515316]
[1770506584188,1e-08,2078.4,2077.6,0.94515316]
[1770506584889,1e-08,2078.4,2077.8,0.94415316]
[1770506586086,1e-08,2078.4,2077.7,1.20325359]
[1770506586598,0.002,2078.7,2077.8,0.98702027]
[1770506586881,0.002,2078.7,2077.9,1.20313778]
[1770506587089,0.93887369,2078.7,2077.9,1.20313778]
[1770506588076,0.002,2078.7,2077.9,1.20313778]
[1770506588793,0.002,2078.7,2077.9,2.19015805]
[1770506589303,0.002,2078.7,2078.0,0.98702027]
[1770506590395,0.002,2078.9,2078.1,0.98702027]
[1770506590974,0.002,2078.9,2078.3,0.98702027]
[1770506591168,0.93687369,2079.7,2078.5,0.98702027]
[1770506591367,4.80774877,2080.0,2078.5,0.98702027]
[1770506591368,2.13883178,2080.0,2078.5,0.98702027]
[1770506591572,0.93687369,2079.6,2078.4,1.20284834]
[1770506591792,0.93887369,2079.6,2078.3,1.20286422]
[1770506592006,0.93887369,2079.6,2078.4,0.9280202]
[1770506592207,0.93887369,2079.6,2078.3,1.20286422]
[1770506592368,0.96629045,2079.4,2078.3,1.20286422]
[1770506593488,2.16861815,2079.3,2078.2,4.81162488]
[1770506593694,0.96629045,2079.3,2078.2,4.81162488]
[1770506593893,0.002,2079.6,2078.3,0.9280202]
[1770506594094,1.20416428,2079.6,2078.3,0.9280202]
[1770506594287,0.002,2079.6,2078.3,0.96878368]
[1770506595718,0.002,2079.6,2078.6,0.04076348]
[1770506595907,0.002,2079.6,2078.7,0.9280202]
[1770506596497,0.002,2080.4,2079.0,0.9280202]
[1770506596802,2.16998322,2080.4,2079.0,0.9280202]
[1770506596968,0.96829045,2080.4,2079.0,0.9280202]
[1770506597603,0.002,2080.4,2079.3,0.9280202]
[1770506597800,0.002,2080.4,2079.4,1.20226988]
[1770506598002,0.002,2080.4,2079.4,2.13029008]
[1770506598305,0.002,2080.4,2079.5,0.9280202]
[1770506599393,0.002,2080.4,2079.5,0.96878368]
[1770506599580,0.002,2080.6,2079.9,0.9280202]
[1770506599776,0.002,2080.6,2080.0,1.20192307]
[1770506599981,0.002,2080.6,2080.1,0.9280202]
[1770506600305,0.002,2080.6,2080.0,1.20192307]
[1770506601383,0.96829045,2080.6,2079.8,1.20202368]
[1770506601577,0.96829045,2080.6,2079.6,1.20212417]
[1770506601811,1.20163422,2080.5,2079.3,1.2023277]
[1770506602020,5.77463913,2080.6,2079.3,2.1303479]
[1770506602021,2.16987358,2080.6,2079.3,2.1303479]
[1770506602311,0.002,2080.6,2079.4,0.9280202]
[1770506602893,0.002,2080.6,2079.6,0.9280202]
[1770506603503,2.16986795,2080.6,2079.3,2.1303479]
[1770506604209,0.002,2080.4,2079.3,2.1303479]
[1770506605690,0.002,2080.4,2079.3,1.2023277]
[1770506605890,0.002,2080.4,2079.3,2.1303479]
[1770506606898,0.002,2080.4,2079.4,0.9280202]
[1770506607294,0.002,2080.4,2079.3,1.2023277]
[1770506607516,0.96629045,2080.3,2079.3,1.2023277]
[1770506608820,0.96629045,2080.3,2079.2,5.7375267]
[1770506609610,0.002,2080.4,2079.3,0.9280202]
[1770506611639,0.002,2080.4,2079.4,1.20226988]
[1770506611934,0.002,2080.4,2079.4,2.13029008]
[1770506613737,0.002,2080.4,2079.5,0.9280202]
[1770506614218,0.002,2080.4,2079.5,0.96878368]
[1770506615536,0.002,2080.4,2079.8,0.04076348]
[1770506615749,0.002,2080.6,2079.9,0.93748792]
[1770506616331,4.80450168,2081.4,2079.8,0.04076348]
[1770506616332,2.18880995,2081.5,2080.2,0.93748792]
[1770506616536,0.002,2080.4,2080.2,0.93748792]
[1770506616741,2.1887856,2081.5,2080.2,0.93748792]
[1770506616936,0.98572764,2081.4,2080.2,0.93748792]
[1770506617512,0.98572764,2081.2,2079.6,1.20215426]
[1770506617738,0.98572764,2081.0,2079.8,1.20203865]
[1770506618041,0.98572764,2081.1,2079.9,0.93748792]
[1770506618533,0.98572764,2081.1,2079.8,1.20203865]